bitfinex-derivatives/quotes_SOLF0:USTF0_20260312
["timestamp","ask_amount","ask_price","bid_price","bid_amount"]
[1773346413650,3.40599078,86.73,86.692,36.3]
[1773346413839,3.40599078,86.75,86.701,6.0103252]
[1773346414042,10.372,86.758,86.711,6.0103252]
[1773346414242,3.40599078,86.77,86.711,6.0103252]
[1773346414951,10.372,86.752,86.711,6.0103252]
[1773346415144,3.40599078,86.75,86.711,6.0103252]
[1773346415548,10.374,86.74,86.711,6.0103252]
[1773346416251,10.373,86.749,86.711,6.0103252]
[1773346417340,3.40599078,86.75,86.699,6.01675015]
[1773346417946,3.40599078,86.74,86.699,6.01675015]
[1773346418953,10.374,86.735,86.699,6.01675015]
[1773346424346,10.375,86.729,86.699,6.01675015]
[1773346424551,3.40599078,86.73,86.69,36.3]
[1773346424851,3.40599078,86.73,86.689,6.12720068]
[1773346425549,10.377,86.714,86.677,6.12691359]
[1773346425848,10.377,86.714,86.678,42.42691359]
[1773346426051,10.377,86.714,86.679,6.12691359]
[1773346426443,10.377,86.714,86.681,6.12691359]
[1773346429253,10.378,86.708,86.681,6.12691359]
[1773346429948,10.377,86.716,86.681,6.12691359]
[1773346432344,10.377,86.71,86.681,6.12691359]
[1773346432845,10.378,86.704,86.681,6.12691359]
[1773346433048,1.95154754,86.699,86.662,36.3]
[1773346433248,1.95154754,86.689,86.65,36.3]
[1773346433650,10.381,86.677,86.65,36.3]
[1773346434453,10.381,86.677,86.649,36.3]
[1773346434650,10.382,86.671,86.632,36.3]
[1773346434955,10.382,86.671,86.633,3.92077378]
[1773346438556,3.40599078,86.67,86.633,3.92077378]
[1773346439656,2.01501507,86.67,86.633,3.92077378]
[1773346440853,10.381,86.68,86.633,3.92077378]
[1773346441058,13.78699078,86.68,86.633,3.92077378]
[1773346441557,2.00852318,86.679,86.633,3.92077378]
[1773346442356,2.00852318,86.679,86.595,11.62075592]
[1773346442357,2.00852318,86.669,86.611,3.92077378]
[1773346442551,2.00852318,86.669,86.613,3.92077378]
[1773346442757,3.40599078,86.66,86.615,3.92077378]
[1773346443858,13.78899078,86.66,86.615,3.92077378]
[1773346444660,10.384,86.655,86.615,3.92077378]
[1773346447366,1.94754494,86.659,86.621,3.92077378]
[1773346447668,1.95020054,86.671,86.631,3.92077378]
[1773346449068,12.33220054,86.671,86.631,3.92077378]
[1773346453263,12.33220054,86.671,86.633,3.92077378]
[1773346459869,1.98448544,86.682,86.641,3.92077378]
[1773346460865,10.381,86.681,86.643,10.385]
[1773346461074,10.381,86.681,86.643,14.34911576]
[1773346463068,1.98840429,86.68,86.643,14.34911576]
[1773346463476,1.98840429,86.68,86.644,3.96411576]
[1773346467580,2.12657529,86.679,86.644,3.96411576]
[1773346481786,3.40841594,86.69,86.644,3.96411576]
[1773346481787,2.11891685,86.676,86.644,3.96411576]
[1773346489893,2.11891685,86.676,86.646,3.77749798]
[1773346497994,2.12349489,86.674,86.637,10.386]
[1773346498196,2.12349489,86.674,86.634,3.90502403]
[1773346498592,171.196816,86.985,86.661,3.90502403]
[1773346498593,2.12349489,86.701,86.661,3.90502403]
[1773346499096,2.12349489,86.697,86.661,3.90502403]
[1773346499394,2.12349489,86.697,86.641,3.90502403]
[1773346500289,10.38,86.688,86.654,3.90502403]
[1773346501600,10.38,86.686,86.654,3.90502403]
[1773346502495,12.44325079,86.686,86.654,3.90502403]
[1773346503499,2.083595,86.683,86.641,3.90502403]
[1773346503700,2.083595,86.669,86.63,3.90502403]
[1773346504900,2.083595,86.669,86.632,3.90502403]
[1773346508103,2.06114033,86.667,86.632,3.90502403]
[1773346508996,10.70140718,86.697,86.627,36.3]
[1773346508997,10.382,86.675,86.633,3.90502403]
[1773346509196,34.63,86.689,86.633,3.90502403]
[1773346509197,8.8725934,86.688,86.633,3.90502403]
[1773346509402,8.8725934,86.697,86.651,3.90502403]
[1773346509606,2.09058392,86.7,86.652,3.90502403]
[1773346511109,8.8725934,86.707,86.661,3.90502403]
[1773346511401,2.14848504,86.719,86.671,3.90502403]
[1773346511607,2.14848504,86.719,86.673,3.90502403]
[1773346512606,2.14848504,86.714,86.673,3.90502403]
[1773346513204,2.14848504,86.705,86.672,36.3]
[1773346515006,10.378,86.703,86.672,36.3]
[1773346518007,2.14848504,86.705,86.672,36.3]
[1773346518210,2.20209029,86.716,86.673,3.90502403]
[1773346518909,10.377,86.71,86.674,3.90502403]
[1773346519908,10.378,86.702,86.674,3.90502403]
[1773346520105,2.18188498,86.715,86.674,3.90502403]
[1773346522016,2.17872439,86.71,86.666,10.383]
[1773346522207,2.17872439,86.709,86.666,10.383]
[1773346522709,10.377,86.714,86.671,3.84309168]
[1773346523611,12.57617861,86.708,86.671,3.84309168]
[1773346525411,2.199167,86.707,86.66,3.84309168]
[1773346525611,14.37196851,86.755,86.618,20.777]
[1773346525612,2.199167,86.689,86.656,36.3]
[1773346525810,2.199167,86.679,86.636,3.84309168]
[1773346526013,10.382,86.669,86.636,40.14309168]
[1773346526314,5.60393603,86.67,86.636,36.3]
[1773346526914,2.199167,86.67,86.636,36.3]
[1773346527705,5.60393603,86.67,86.636,36.3]
[1773346528110,2.19546497,86.684,86.641,3.84309168]
[1773346528512,2.19546497,86.684,86.643,3.84309168]
[1773346531917,10.381,86.683,86.643,3.84309168]
[1773346536123,2.19546497,86.684,86.645,3.84309168]
[1773346538023,12.57646497,86.684,86.645,3.84309168]
[1773346538423,2.19546497,86.684,86.645,3.84309168]
[1773346539321,2.19546497,86.684,86.646,3.84309168]
[1773346542325,10.381,86.683,86.646,3.84309168]
[1773346542824,2.19546497,86.684,86.647,3.86460958]
[1773346543818,12.57646497,86.684,86.647,3.86460958]
[1773346547818,10.38,86.691,86.647,3.86460958]
[1773346548127,10.38,86.691,86.651,3.86460958]
[1773346551730,10.38,86.691,86.65,3.40476903]
[1773346551731,10.379,86.698,86.661,3.66804508]
[1773346551932,10.379,86.698,86.663,3.66804508]
[1773346557843,2.26128432,86.694,86.663,3.66804508]
[1773346558542,2.26128432,86.694,86.655,46.684]
[1773346558843,2.26128432,86.692,86.655,46.684]
[1773346559843,2.26128432,86.692,86.655,50.35204508]
[1773346561147,2.26128432,86.692,86.655,39.96804508]
[1773346561349,2.26637108,86.688,86.644,3.66804508]
[1773346562947,10.381,86.677,86.644,3.66804508]
[1773346568956,2.25030027,86.676,86.644,3.66804508]
[1773346569153,28.53029058,86.765,86.54,173.299]
[1773346569154,2.25030027,86.674,86.633,3.66804508]
[1773346569349,2.25030027,86.674,86.634,36.32]
[1773346570853,2.24579931,86.672,86.634,36.32]
[1773346573261,3.91215585,86.638,86.589,10.392]
[1773346573461,3.91215585,86.629,86.57,3.40476903]
[1773346573763,3.91215585,86.619,86.56,3.41313106]
[1773346573961,3.91215585,86.619,86.572,10.394]
[1773346574160,3.91215585,86.619,86.58,3.41313106]
[1773346575163,3.91215585,86.619,86.581,3.66804508]
[1773346582370,3.91215585,86.619,86.591,0.07275096]
[1773346583267,3.66688919,86.616,86.591,0.07275096]
[1773346583571,3.66688919,86.599,86.552,3.74251841]
[1773346583770,3.66688919,86.587,86.549,36.32]
[1773346584566,3.66688919,86.585,86.549,36.32]
[1773346584766,3.66688919,86.585,86.541,3.74251841]
[1773346585367,0.07313425,86.573,86.541,3.74251841]
[1773346586073,3.66688919,86.599,86.551,3.74251841]
[1773346586973,3.66688919,86.599,86.552,14.13851841]
[1773346587971,3.66688919,86.599,86.552,3.74251841]
[1773346591577,3.66688919,86.599,86.567,0.07329872]
[1773346592767,70.95,86.622,86.567,3.81581713]
[1773346592768,3.66688919,86.611,86.567,3.81581713]
[1773346593168,3.66688919,86.611,86.567,3.74251841]
[1773346593578,3.41313106,86.61,86.567,3.74251841]
[1773346593773,3.66688919,86.605,86.567,3.74251841]
[1773346593977,3.66688919,86.605,86.551,3.74251841]
[1773346594871,3.66688919,86.603,86.551,3.74251841]
[1773346596878,3.66688919,86.597,86.551,3.74251841]
[1773346597878,10.391,86.596,86.551,3.74251841]
[1773346598878,14.05788919,86.596,86.551,3.74251841]
[1773346600874,14.05788919,86.596,86.565,0.07325769]
[1773346601472,3.66688919,86.592,86.565,0.07325769]
[1773346602281,10.392,86.591,86.565,0.07325769]
[1773346603377,3.66688919,86.592,86.565,0.07325769]
[1773346603578,3.92337355,86.615,86.571,3.71334743]
[1773346603772,3.92337355,86.615,86.58,3.41313106]
[1773346603974,3.41313106,86.63,86.58,3.41313106]
[1773346603975,3.92337355,86.626,86.581,3.71334743]
[1773346604975,10.388,86.621,86.581,3.71334743]
[1773346607687,14.31137355,86.621,86.581,3.71334743]
[1773346609784,3.92337355,86.617,86.58,3.41313106]
[1773346609983,3.92337355,86.617,86.58,7.12647849]
[1773346610383,3.92337355,86.617,86.581,3.71334743]
[1773346612585,3.92337355,86.617,86.59,0.07306637]
[1773346617092,10.389,86.616,86.59,0.07306637]
[1773346617289,14.25392207,86.616,86.59,0.07306637]
[1773346617786,3.86492207,86.615,86.59,0.07306637]
[1773346617992,10.389,86.613,86.59,0.07306637]
[1773346620290,10.388,86.62,86.59,0.07306637]
[1773346620494,8.82684276,86.648,86.601,4.05127902]
[1773346620686,3.86492207,86.651,86.61,3.41313106]
[1773346621288,10.385,86.647,86.611,10.389]
[1773346621494,3.86492207,86.669,86.621,4.05127902]
[1773346622989,10.384,86.655,86.621,4.05127902]
[1773346623495,3.86492207,86.658,86.61,3.41313106]
[1773346624389,3.86492207,86.643,86.6,3.41313106]
[1773346624692,3.86492207,86.639,86.59,3.41313106]
[1773346625987,3.86492207,86.635,86.593,10.391]
[1773346626792,3.86492207,86.635,86.6,3.41313106]
[1773346629890,10.385,86.65,86.611,4.05127902]
[1773346630094,10.385,86.65,86.62,3.41313106]
[1773346630297,10.385,86.65,86.611,4.05127902]
[1773346630697,14.24992207,86.65,86.611,4.05127902]
[1773346631190,10.385,86.647,86.611,4.05127902]
[1773346634700,3.86492207,86.644,86.597,4.05127902]
[1773346635403,3.86492207,86.644,86.596,10.391]
[1773346635404,3.86492207,86.634,86.596,10.391]
[1773346636901,3.86492207,86.632,86.596,10.391]
[1773346638899,3.86492207,86.63,86.59,3.40963204]
[1773346639399,14.25192207,86.628,86.59,3.40963204]
[1773346640908,14.25192207,86.628,86.591,3.72688694]
[1773346644301,14.25192207,86.628,86.593,10.391]
[1773346645207,14.25192207,86.628,86.593,14.11788694]
[1773346645912,14.25192207,86.628,86.593,3.72688694]
[1773346647609,3.98220474,86.624,86.593,3.72688694]
[1773346648915,10.388,86.623,86.593,3.72688694]
[1773346651421,0.0727353,86.617,86.593,3.72688694]
[1773346653310,0.0727353,86.617,86.575,36.32]
[1773346653311,3.98220474,86.616,86.575,36.32]
[1773346653511,3.98220474,86.609,86.55,3.40963204]
[1773346653720,3.98220474,86.599,86.55,7.13651898]
[1773346653924,3.98220474,86.588,86.55,3.72688694]
[1773346654424,3.98220474,86.588,86.551,3.72688694]
[1773346655022,10.392,86.586,86.551,3.72688694]
[1773346655419,3.98220474,86.588,86.552,10.396]
[1773346655625,3.98220474,86.588,86.553,3.72688694]
[1773346658322,3.98220474,86.602,86.562,3.72688694]
[1773346660026,3.98220474,86.6,86.562,3.72688694]
[1773346661026,3.98220474,86.6,86.57,3.40963204]
[1773346662819,3.98220474,86.6,86.563,3.72688694]
[1773346663025,3.88997002,86.597,86.556,10.396]
[1773346663927,3.88997002,86.594,86.556,10.396]
[1773346670335,3.88997002,86.594,86.556,14.3805346]
[1773346670532,3.88997002,86.594,86.542,36.32]
[1773346670533,10.391,86.595,86.561,3.9845346]
[1773346671335,10.391,86.593,86.561,3.9845346]
[1773346672435,3.9852837,86.592,86.561,3.9845346]
[1773346677842,3.9852837,86.59,86.552,14.3805346]
[1773346678940,3.9852837,86.59,86.553,3.9845346]
[1773346680139,3.9852837,86.581,86.543,3.9845346]
[1773346680338,3.40963204,86.58,86.532,3.9845346]
[1773346680539,3.9852837,86.579,86.532,3.9845346]
[1773346680841,3.9852837,86.579,86.525,36.32]
[1773346681938,3.9852837,86.58,86.541,3.9845346]
[1773346683942,10.393,86.578,86.541,3.9845346]
[1773346686149,3.9852837,86.575,86.541,3.9845346]
[1773346686350,3.9852837,86.575,86.534,10.398]
[1773346686645,10.397,86.545,86.496,19.55730281]
[1773346686948,3.40963204,86.54,86.496,19.55730281]
[1773346687343,34.64,86.559,86.496,19.55730281]
[1773346687549,3.40963204,86.54,86.496,19.55730281]
[1773346688149,13.80763204,86.54,86.496,19.55730281]
[1773346688551,10.398,86.54,86.496,19.55730281]
[1773346689143,34.64,86.559,86.476,36.34]
[1773346689144,10.397,86.549,86.501,19.5552044]
[1773346692350,36.34,86.568,86.511,19.55613344]
[1773346692351,10.396,86.558,86.511,19.55613344]
[1773346694246,8.66447905,86.578,86.49,3.40963204]
[1773346694451,3.40963204,86.56,86.501,19.55612854]
[1773346694653,3.40963204,86.56,86.511,19.55612854]
[1773346695658,3.4175694,86.56,86.511,19.55612854]
[1773346695948,34.64,86.578,86.5,19.55397819]
[1773346696148,34.64,86.578,86.5,22.97154759]
[1773346696358,3.4175694,86.55,86.5,22.97154759]
[1773346698957,10.397,86.546,86.5,22.97154759]
[1773346699456,3.4175694,86.57,86.511,19.56037008]
[1773346700053,3.4175694,86.56,86.511,19.56037008]
[1773346700450,3.4175694,86.55,86.5,3.4175694]
[1773346700655,3.4175694,86.56,86.501,19.5634034]
[1773346700855,3.4175694,86.56,86.511,19.5634034]
[1773346701056,10.396,86.554,86.511,19.5634034]
[1773346701251,3.4175694,86.57,86.511,19.5634034]
[1773346701656,10.396,86.556,86.511,19.5634034]
[1773346702053,3.4175694,86.56,86.511,19.5634034]
[1773346702853,13.8125694,86.56,86.511,19.5634034]
[1773346704662,10.396,86.553,86.511,19.5634034]
[1773346706054,10.395,86.561,86.511,19.5634034]
[1773346706659,10.394,86.569,86.515,19.3852607]
[1773346706860,10.394,86.569,86.521,19.3852607]
[1773346708162,10.393,86.577,86.531,19.3992612]
[1773346708464,3.4175694,86.59,86.533,19.3992612]
[1773346709760,3.4175694,86.59,86.541,19.41111476]
[1773346710762,10.392,86.591,86.551,19.41111476]
[1773346714881,10.391,86.598,86.561,19.40663503]
[1773346718387,10.39,86.605,86.561,19.40663503]
[1773346719181,10.391,86.598,86.561,19.40663503]
[1773346721487,3.4175694,86.62,86.57,3.4175694]
[1773346721789,3.4175694,86.62,86.571,19.38935982]
[1773346722490,10.39,86.607,86.571,19.38935982]
[1773346722991,10.391,86.599,86.571,19.38935982]
[1773346725188,10.39,86.608,86.571,19.38935982]
[1773346725488,3.4175694,86.61,86.56,22.83526537]
[1773346726185,3.4175694,86.61,86.56,19.41769597]
[1773346726488,57.093,86.634,86.56,19.41769597]
[1773346726489,3.4175694,86.6,86.56,19.41769597]
[1773346727385,10.392,86.59,86.56,19.41769597]
[1773346731297,10.393,86.581,86.56,19.41769597]
[1773346732291,10.392,86.588,86.56,19.41769597]
[1773346734492,3.4175694,86.6,86.546,36.32]
[1773346734493,10.393,86.582,86.548,19.43832849]
[1773346734796,10.393,86.582,86.546,36.32]
[1773346734797,3.4175694,86.58,86.536,19.43832849]
[1773346735593,10.394,86.57,86.536,19.43832849]
[1773346741087,3.4175694,86.6,86.551,19.43710049]
[1773346741892,10.392,86.585,86.551,19.43710049]
[1773346742092,3.4175694,86.6,86.551,19.43710049]
[1773346742293,3.4175694,86.62,86.561,19.4380459]
[1773346742492,10.39,86.606,86.571,19.4380459]
[1773346748397,36.34,86.629,86.571,19.4380459]
[1773346748398,10.389,86.614,86.571,19.4380459]
[1773346749393,10.389,86.614,86.576,10.393]
[1773346749700,10.389,86.614,86.577,19.39997998]
[1773346750000,10.39,86.608,86.577,19.39997998]
[1773346758601,10.389,86.617,86.577,19.39997998]
[1773346758806,10.389,86.617,86.581,19.40341061]
[1773346759506,36.34,86.635,86.591,19.55179979]
[1773346759702,34.64,86.639,86.591,19.55179979]
[1773346759906,39.75290877,86.65,86.591,19.55179979]
[1773346760106,8.81483851,86.649,86.591,19.55179979]
[1773346760606,43.45483851,86.649,86.591,19.55179979]
[1773346760802,10.386,86.641,86.601,19.55184363]
[1773346762610,10.386,86.634,86.601,19.55184363]
[1773346765618,0.07287077,86.626,86.601,19.55184363]
[1773346784535,3.41290877,86.67,86.621,19.50173476]
[1773346785926,10.384,86.651,86.621,19.50173476]
[1773346787937,3.41290877,86.63,86.591,19.49494836]
[1773346788234,34.64,86.65,86.571,19.49494836]
[1773346788430,3.41290877,86.6,86.571,19.49494836]
[1773346788835,3.41290877,86.59,86.547,19.49494836]
[1773346789630,10.393,86.577,86.547,19.49494836]
[1773346790136,10.394,86.57,86.547,19.49494836]
[1773346790333,13.80690877,86.57,86.535,19.50870616]
[1773346790537,3.41290877,86.57,86.535,19.50870616]
[1773346791037,10.396,86.556,86.51,3.41290877]
[1773346791234,10.396,86.556,86.511,19.50856987]
[1773346799742,34.64,86.555,86.495,19.54663524]
[1773346799947,3.41290877,86.55,86.501,19.54663524]
[1773346800241,3.41290877,86.58,86.521,19.54663524]
[1773346800547,3.41290877,86.58,86.53,22.95954401]
[1773346801845,10.394,86.572,86.53,22.95954401]
[1773346803047,10.395,86.565,86.53,19.54663524]
[1773346803246,3.41290877,86.57,86.518,19.54445721]
[1773346803645,10.397,86.551,86.518,19.54445721]
[1773346804448,10.395,86.559,86.518,19.54445721]
[1773346806045,3.41290877,86.55,86.506,19.53650586]
[1773346806245,3.41290877,86.55,86.457,20.816]
[1773346806246,3.41290877,86.54,86.493,19.53650586]
[1773346807648,3.41290877,86.54,86.508,0.0731233]
[1773346807845,10.4,86.519,86.508,0.0731233]
[1773346808251,3.41290877,86.52,86.465,19.54028664]
[1773346808542,10.401,86.51,86.465,19.54028664]
[1773346808743,3.41290877,86.53,86.471,19.54028664]
[1773346809047,10.4,86.526,86.481,19.54028664]
[1773346809944,36.34,86.533,86.491,19.55630867]
[1773346810148,3.41290877,86.54,86.491,19.55630867]
[1773346810548,10.4,86.524,86.491,19.55630867]
[1773346813649,3.41290877,86.53,86.491,19.55630867]
[1773346813853,3.41290877,86.56,86.501,19.55036748]
[1773346814056,3.41290877,86.56,86.511,19.55036748]
[1773346814454,10.397,86.544,86.511,19.55036748]
[1773346814749,3.41290877,86.55,86.511,19.55036748]
[1773346814946,3.41290877,86.54,86.501,19.55036748]
[1773346815651,34.64,86.568,86.481,19.52910956]
[1773346815652,3.41290877,86.53,86.481,19.52910956]
[1773346816851,10.4,86.521,86.481,19.52910956]
[1773346817854,10.399,86.528,86.481,19.52910956]
[1773346818152,3.41290877,86.54,86.491,19.51576298]
[1773346818358,3.41290877,86.53,86.491,19.51576298]
[1773346818951,3.41290877,86.52,86.471,19.51576298]
[1773346819656,3.42094293,86.52,86.471,19.51576298]
[1773346820950,10.401,86.514,86.471,19.51576298]
[1773346821951,10.4,86.522,86.481,19.49344798]
[1773346823259,10.401,86.516,86.481,19.49344798]
[1773346824760,10.402,86.508,86.481,19.49344798]
[1773346824955,3.42094293,86.52,86.481,19.49344798]
[1773346825464,10.401,86.509,86.481,19.49344798]
[1773346825761,3.42094293,86.52,86.481,19.49344798]
[1773346826063,0.07317659,86.509,86.481,19.49344798]
[1773346826954,10.402,86.502,86.481,19.49344798]
[1773346827156,0.07317659,86.509,86.481,19.49344798]
[1773346827666,3.42094293,86.5,86.468,19.4924291]
[1773346828162,3.42094293,86.51,86.468,19.4924291]
[1773346828862,10.403,86.496,86.468,19.4924291]
[1773346830461,10.404,86.491,86.457,19.52051454]
[1773346830770,3.42094293,86.52,86.461,19.52051454]
[1773346831559,3.42094293,86.51,86.461,19.52051454]
[1773346832266,0.07321561,86.494,86.461,19.52051454]
[1773346834270,10.402,86.507,86.463,19.46698467]
[1773346835868,10.402,86.507,86.465,10.407]
[1773346836065,10.402,86.507,86.466,19.46246094]
[1773346841174,10.402,86.507,86.479,19.45733212]
[1773346841574,10.402,86.501,86.478,0.07323655]
[1773346842274,10.402,86.508,86.478,19.52485863]
[1773346844467,14.25486266,86.565,86.478,19.52485863]
[1773346844468,10.401,86.515,86.478,19.52485863]
[1773346844973,3.42094293,86.51,86.478,19.45162208]
[1773346845966,10.402,86.505,86.478,19.45162208]
[1773346847377,10.401,86.512,86.478,19.45162208]
[1773346848368,10.4,86.518,86.478,19.45162208]
[1773346848579,36.36,86.533,86.478,19.45162208]
[1773346848774,3.42094293,86.53,86.478,19.45162208]
[1773346849878,10.4,86.524,86.485,10.404]
[1773346850080,10.4,86.524,86.496,19.42934746]
[1773346852775,10.401,86.517,86.495,0.07374793]
[1773346855781,10.4,86.524,86.495,0.07374793]
[1773346855980,3.42094293,86.52,86.495,0.07374793]
[1773346858482,10.4,86.519,86.495,0.07374793]
[1773346861080,3.42094293,86.52,86.495,19.51412369]
[1773346861387,10.4,86.525,86.495,19.51412369]
[1773346862789,3.42094293,86.52,86.495,0.07374793]
[1773346863185,3.42094293,86.53,86.496,19.44033085]
[1773346864081,10.399,86.529,86.496,19.44033085]
[1773346868987,3.42094293,86.52,86.495,0.07374793]
[1773346869183,3.42094293,86.51,86.495,0.07374793]
[1773346869592,3.42094293,86.51,86.472,19.47195057]
[1773346869792,3.42094293,86.5,86.472,19.47195057]
[1773346870084,34.64,86.531,86.472,19.47195057]
[1773346870085,3.42094293,86.51,86.472,19.47195057]
[1773346870991,3.42094293,86.52,86.472,19.47195057]
[1773346871290,3.42094293,86.53,86.472,19.47195057]
[1773346871885,10.4,86.523,86.474,19.47021327]
[1773346873487,10.401,86.518,86.474,19.47021327]
[1773346875989,3.42094293,86.52,86.478,10.405]
[1773346876188,3.42094293,86.52,86.479,19.42720232]
[1773346876394,10.4,86.526,86.479,19.42720232]
[1773346877693,0.07410479,86.511,86.479,19.42720232]
[1773346877890,0.07410479,86.511,86.482,19.40801803]
[1773346879084,0.07410479,86.511,86.471,19.40801803]
[1773346880903,0.07410479,86.511,86.473,19.42083432]
[1773346882901,10.402,86.508,86.473,19.42083432]
[1773346883101,0.07410479,86.511,86.473,19.42083432]
[1773346884296,3.42079366,86.51,86.473,19.42083432]
[1773346884499,0.07410479,86.511,86.473,19.42083432]
[1773346894216,10.401,86.51,86.473,19.42083432]
[1773346897120,3.42079366,86.51,86.473,19.42083432]
[1773346898215,36.34,86.535,86.473,19.42083432]
[1773346898216,2.13721154,86.569,86.5,3.42079366]
[1773346898517,161.457,86.698,86.5,3.42079366]
[1773346898518,43.47297525,86.71,86.599,34.64]
[1773346898819,11.5565026,86.739,86.562,161.709]
[1773346898820,40.05218159,86.689,86.64,3.42079366]
[1773346899016,3.42079366,86.66,86.641,0.00011478]
[1773346899221,3.42079366,86.66,86.616,36.36]
[1773346899425,3.42079366,86.67,86.616,36.36]
[1773346899617,36.36,86.684,86.616,36.36]
[1773346900015,36.36,86.684,86.6,10.73730187]
[1773346900016,9.13247892,86.67,86.6,10.73730187]
[1773346900218,8.75084881,86.669,86.587,10.73730187]
[1773346900417,8.75084881,86.668,86.584,10.73730187]
[1773346900617,9.13247892,86.67,86.584,10.73730187]
[1773346900618,8.75084881,86.667,86.584,10.73730187]
[1773346900818,8.75084881,86.666,86.584,10.73730187]
[1773346901015,26.99006612,86.639,86.584,10.73730187]
[1773346901314,26.99006612,86.637,86.578,10.73730187]
[1773346901514,26.99006612,86.637,86.578,47.07730187]
[1773346901717,26.99006612,86.637,86.578,10.73730187]
[1773346901919,26.99006612,86.637,86.579,36.34]
[1773346906928,26.99006612,86.637,86.58,10.393]
[1773346907928,26.99006612,86.637,86.57,36.34]
[1773346908923,26.9804532,86.635,86.57,36.34]
[1773346911230,10.387,86.634,86.594,0.07281149]
[1773346911428,26.98410786,86.633,86.594,0.07281149]
[1773346912130,26.98264981,86.625,86.594,0.07281149]
[1773346912628,26.98264981,86.625,86.57,36.34]
[1773346914223,26.98264981,86.625,86.571,10.394]
[1773346919435,26.98264981,86.625,86.589,0.07344845]
[1773346921530,26.98264981,86.625,86.59,3.41148503]
[1773346921738,26.97795227,86.637,86.6,3.41148503]
[1773346923432,26.97795227,86.637,86.598,10.391]
[1773346924432,26.97795227,86.637,86.605,10.39]
[1773346924640,26.97614557,86.65,86.61,3.41148503]
[1773346926443,26.97614557,86.65,86.62,3.41148503]
[1773346927441,26.97614557,86.65,86.622,10.388]
[1773346930144,26.99317373,86.666,86.63,3.41148503]
[1773346931845,26.99317373,86.666,86.631,10.387]
[1773346933646,26.99317373,86.666,86.64,3.41148503]
[1773346935748,26.99317373,86.666,86.644,0.07302551]
[1773346935944,26.9944742,86.683,86.644,0.07302551]
[1773346936851,37.3754742,86.683,86.644,0.07302551]
[1773346937146,26.9944742,86.682,86.645,10.385]
[1773346937553,26.9944742,86.682,86.65,3.41148503]
[1773346937751,26.9944742,86.682,86.651,10.384]
[1773346939455,26.9944742,86.682,86.644,10.45802551]
[1773346940651,26.98845684,86.693,86.65,3.41148503]
[1773346941355,26.98845684,86.693,86.65,14.00558996]
[1773346942056,26.98845684,86.693,86.659,10.383]
[1773346942250,26.98845684,86.693,86.66,3.41148503]
[1773346943258,26.98845684,86.693,86.664,10.59410493]
[1773346943457,26.98845684,86.693,86.668,10.59410493]
[1773346943956,26.98845684,86.693,86.641,21.55571878]
[1773346943957,26.97701437,86.705,86.672,10.59410493]
[1773346944155,26.97701437,86.705,86.669,10.70916711]
[1773346944356,21.6799619,86.699,86.65,3.40577314]
[1773346944557,21.6799619,86.699,86.646,14.37047919]
[1773346944959,21.6799619,86.699,86.643,14.37047919]
[1773346945158,21.6799619,86.699,86.642,14.37047919]
[1773346945959,16.30701039,86.696,86.654,10.384]
[1773346946261,3.40577314,86.73,86.672,14.37047919]
[1773346946556,10.375,86.729,86.685,10.38]
[1773346946855,8.62571014,86.76,86.685,10.38]
[1773346947056,3.40577314,86.73,86.671,14.37047919]
[1773346947359,3.40577314,86.73,86.68,3.40577314]
[1773346947860,10.374,86.737,86.692,10.379]
[1773346948259,8.05242288,86.736,86.692,10.379]
[1773346948856,8.05242288,86.728,86.68,3.40577314]
[1773346949050,3.40577314,86.72,86.67,3.40577314]
[1773346949256,3.40577314,86.72,86.652,50.71047919]
[1773346949257,8.05242288,86.728,86.68,3.40577314]
[1773346950960,8.04049398,86.726,86.681,10.381]
[1773346951559,8.04049398,86.726,86.69,3.40577314]
[1773346951857,8.04049398,86.726,86.665,14.37047919]
[1773346951858,8.04049398,86.726,86.7,3.40577314]
[1773346956464,3.40577314,86.78,86.71,3.40577314]
[1773346956666,3.40577314,86.78,86.72,3.40577314]
[1773346957374,3.40577314,86.77,86.72,3.40577314]
[1773346957872,10.372,86.757,86.72,3.40577314]
[1773346958171,10.372,86.757,86.711,10.377]
[1773346958372,3.40577314,86.78,86.72,3.40577314]
[1773346958572,3.93366164,86.759,86.7,3.40577314]
[1773346958762,3.93366164,86.759,86.71,3.40577314]
[1773346959070,3.93366164,86.759,86.72,3.40577314]
[1773346959473,3.93366164,86.772,86.73,3.40577314]